fUST/lending_fUST_20240423
["ID","MTS","AMOUNT","RATE_DAILY","PERIOD"]
[323253195,1713850242518,-500.0,0.00024657,2]
[323253197,1713850242529,-507.72233272,0.00024657,2]
[323253199,1713850242540,-524.07719286,0.00024657,2]
[323253201,1713850242550,-502.22000039,0.00024657,2]
[323253203,1713850242560,-500.0,0.00024657,2]
[323253206,1713850242570,-500.0,0.00024657,2]
[323253208,1713850242580,-500.0,0.00024657,2]
[323253209,1713850242590,-500.0,0.00024657,2]
[323253211,1713850242599,-500.0,0.00024657,2]
[323253214,1713850242609,-500.0,0.00024657,2]
[323253216,1713850242619,-151.699765,0.00024657,2]
[323253218,1713850242632,-500.0,0.00024657,2]
[323253219,1713850242642,-500.0,0.00024657,2]
[323253222,1713850242651,-500.0,0.00024657,2]
[323253223,1713850242661,-500.0,0.00024657,2]
[323253225,1713850242670,-612.32,0.00024657,2]
[323253227,1713850242679,-536.19,0.00024657,2]
[323253229,1713850242688,-515.10229264,0.00024657,2]
[323253231,1713850242697,-742.07,0.00024657,2]
[323253233,1713850242707,-1413.18,0.00024657,2]
[323253236,1713850242716,-912.14,0.00024657,2]
[323253238,1713850242725,-500.0,0.00024657,2]
[323253240,1713850242734,-500.0,0.00024657,2]
[323253242,1713850242744,-500.0,0.00024657,2]
[323253244,1713850242753,-500.0,0.00024657,2]
[323253246,1713850242762,-500.0,0.00024657,2]
[323253248,1713850242771,-500.0,0.00024657,2]
[323253250,1713850242780,-500.0,0.00024657,2]
[323253252,1713850242789,-500.58657113,0.00024657,2]
[323253254,1713850242798,-500.0,0.00024657,2]
[323253256,1713850242807,-500.0,0.00024657,2]
[323253259,1713850242817,-500.0,0.00024657,2]
[323253262,1713850242826,-500.0,0.00024657,2]
[323253264,1713850242836,-500.0,0.00024657,2]
[323253266,1713850242846,-524.69,0.00024657,2]
[323253268,1713850242855,-500.0,0.00024657,2]
[323253270,1713850242865,-500.0,0.00024657,2]
[323253273,1713850242877,-500.0,0.00024657,2]
[323253274,1713850242887,-500.0,0.00024657,2]
[323253276,1713850242896,-500.0,0.00024657,2]
[323253278,1713850242905,-500.0,0.00024657,2]
[323253280,1713850242915,-414.333361,0.00024657,2]
[323253282,1713850242924,-1352.57,0.00024657,2]
[323253284,1713850242934,-500.0,0.00024657,2]
[323253287,1713850242943,-500.0,0.00024657,2]
[323253290,1713850242952,-500.0,0.00024657,2]
[323253293,1713850242961,-500.0,0.00024657,2]
[323253296,1713850242970,-1042.58,0.00024657,2]
[323253298,1713850242980,-674.5,0.00024657,2]
[323253300,1713850242989,-500.0,0.00024657,2]
[323253302,1713850242998,-500.0,0.00024657,2]
[323253304,1713850243007,-729.98,0.00024657,2]
[323253306,1713850243016,-500.0,0.00024657,2]
[323253308,1713850243025,-500.0,0.00024657,2]
[323253310,1713850243034,-500.0,0.00024657,2]
[323253312,1713850243044,-500.0,0.00024657,2]
[323253314,1713850243054,-500.0,0.00024657,2]
[323253316,1713850243063,-506.04947001,0.00024657,2]
[323253318,1713850243072,-500.0,0.00024657,2]
[323253320,1713850243081,-500.0,0.00024657,2]
[323253322,1713850243090,-500.0,0.00024657,2]
[323253324,1713850243099,-505.00803126,0.00024657,2]
[323253326,1713850243109,-700.73,0.00024657,2]
[323253328,1713850243118,-709.16,0.00024657,2]
[323253330,1713850243127,-500.0,0.00024657,2]
[323253332,1713850243136,-500.0,0.00024657,2]
[323253334,1713850243145,-500.0,0.00024657,2]
[323253336,1713850243154,-504.20197464,0.00024657,2]
[323253338,1713850243164,-500.0,0.00024657,2]
[323253340,1713850243173,-500.0,0.00024657,2]
[323253342,1713850243182,-500.0,0.00024657,2]
[323253344,1713850243191,-500.0,0.00024657,2]
[323253346,1713850243199,-603.50416377,0.00024657,2]
[323253348,1713850243209,-500.0,0.00024657,2]
[323253350,1713850243218,-500.0,0.00024657,2]
[323253352,1713850243227,-500.0,0.00024657,2]
[323253354,1713850243236,-390.87076905,0.00024657,2]
[323253356,1713850243246,-2093.01,0.00024657,2]
[323253358,1713850243255,-1923.59,0.00024657,2]
[323253360,1713850243264,-500.0,0.00024657,2]
[323253362,1713850243274,-500.0,0.00024657,2]
[323253364,1713850243282,-500.0,0.00024657,2]
[323253366,1713850243291,-500.0,0.00024657,2]
[323253368,1713850243300,-506.77490559,0.00024657,2]
[323253370,1713850243309,-500.0,0.00024657,2]
[323253372,1713850243318,-177.41718301,0.00024657,2]
[323253374,1713850243327,-151.0,0.00024657,2]
[323253376,1713850243337,-500.0,0.00024657,2]
[323253378,1713850243346,-151.0,0.00024657,2]
[323253380,1713850243354,-151.0,0.00024657,2]
[323253382,1713850243363,-189.495187,0.00024657,2]
[323253384,1713850243372,-500.0,0.00024657,2]
[323253386,1713850243383,-517.75318014,0.00024657,2]
[323253387,1713850243393,-412.28502868,0.00024657,2]
[323253389,1713850243402,-500.0,0.00024657,2]
[323253391,1713850243411,-500.0,0.00024657,2]
[323253393,1713850243420,-2149.72,0.00024657,2]
[323253395,1713850243429,-502.98719608,0.00024657,2]
[323253397,1713850243438,-561.22,0.00024657,2]
[323253399,1713850243451,-500.0,0.00024657,2]
[323253401,1713850243460,-836.697158,0.00024657,2]
[323253403,1713850243469,-501.5391065,0.00024657,2]
[323253405,1713850243478,-836.697158,0.00024657,2]
[323253407,1713850243487,-836.697158,0.00024657,2]
[323253409,1713850243496,-836.697158,0.00024657,2]
[323253411,1713850243505,-983.83,0.00024657,2]
[323253413,1713850243514,-500.33825251,0.00024657,2]
[323253415,1713850243523,-836.697158,0.00024657,2]
[323253417,1713850243532,-500.0,0.00024657,2]
[323253419,1713850243542,-836.697158,0.00024657,2]
[323253421,1713850243551,-836.697158,0.00024657,2]
[323253423,1713850243560,-836.697158,0.00024657,2]
[323253425,1713850243569,-3976.81,0.00024657,2]
[323253427,1713850243578,-2167.7,0.00024657,2]
[323253429,1713850243587,-501.51699211,0.00024657,2]
[323253431,1713850243596,-1128.92,0.00024657,2]
[323253433,1713850243605,-500.0,0.00024657,2]
[323253435,1713850243614,-621.68,0.00024657,2]
[323253437,1713850243623,-621.68,0.00024657,2]
[323253439,1713850243634,-621.68,0.00024657,2]
[323253441,1713850243643,-621.68,0.00024657,2]
[323253443,1713850243653,-621.68,0.00024657,2]
[323253445,1713850243661,-621.68,0.00024657,2]
[323253447,1713850243671,-621.68,0.00024657,2]
[323253449,1713850243680,-621.68,0.00024657,2]
[323253451,1713850243689,-621.68,0.00024657,2]
[323253453,1713850243698,-621.68,0.00024657,2]
[323253455,1713850243708,-621.68,0.00024657,2]
[323253457,1713850243718,-621.68,0.00024657,2]
[323253468,1713850243813,-934.25,0.00024657,2]
[323253470,1713850243823,-621.68,0.00024657,2]
[323253472,1713850243833,-621.68,0.00024657,2]
[323253474,1713850243844,-621.68,0.00024657,2]
[323253476,1713850243854,-621.68,0.00024657,2]
[323253478,1713850243866,-621.68,0.00024657,2]
[323253480,1713850243878,-621.68,0.00024657,2]
[323253482,1713850243887,-621.68,0.00024657,2]
[323253484,1713850243897,-500.0,0.00024657,2]
[323253486,1713850243908,-621.68,0.00024657,2]
[323253488,1713850243917,-621.68,0.00024657,2]
[323253490,1713850243926,-621.68,0.00024657,2]
[323253492,1713850243935,-621.68,0.00024657,2]
[323253494,1713850243944,-621.71619593,0.00024657,2]
[323253496,1713850243954,-151.0,0.00024657,2]
[323253498,1713850243964,-151.0,0.00024657,2]
[323253500,1713850243975,-151.0,0.00024657,2]
[323253501,1713850243983,-500.0,0.00024657,2]
[323253503,1713850243992,-500.0,0.00024657,2]
[323253505,1713850244002,-151.0,0.00024657,2]
[323253507,1713850244011,-292.034844,0.00024657,2]
[323253509,1713850244020,-500.0,0.00024657,2]
[323253511,1713850244028,-512.76219954,0.00024657,2]
[323253513,1713850244038,-640.1,0.00024657,2]
[323253515,1713850244047,-500.0,0.00024657,2]
[323253517,1713850244056,-500.0,0.00024657,2]
[323253519,1713850244065,-622.99,0.00024657,2]
[323253521,1713850244074,-500.0,0.00024657,2]
[323253523,1713850244083,-500.0,0.00024657,2]
[323253525,1713850244092,-500.0,0.00024657,2]
[323253526,1713850244100,-702.82,0.00024657,2]
[323253527,1713850244109,-500.0,0.00024657,2]
[323253528,1713850244117,-553.82,0.00024657,2]
[323253529,1713850244127,-522.83,0.00024657,2]
[323253530,1713850244135,-10654.34,0.00024657,2]
[323253531,1713850244144,-500.0,0.00024657,2]
[323253532,1713850244153,-500.0,0.00024657,2]
[323253533,1713850244165,-673.76,0.00024657,2]
[323253534,1713850244174,-500.0,0.00024657,2]
[323253535,1713850244183,-1034.69298,0.00024657,2]
[323253536,1713850244192,-1034.69298,0.00024657,2]
[323253537,1713850244201,-1034.69298,0.00024657,2]
[323253538,1713850244210,-1630.22,0.00024657,2]
[323253539,1713850244218,-900.128916,0.00024657,2]
[323253540,1713850244227,-900.128916,0.00024657,2]
[323253541,1713850244237,-2468.49,0.00024657,2]
[323253542,1713850244246,-900.128916,0.00024657,2]
[323253543,1713850244255,-1034.69298,0.00024657,2]
[323253544,1713850244264,-1034.69298,0.00024657,2]
[323253545,1713850244273,-1034.69298,0.00024657,2]
[323253546,1713850244282,-503.97322775,0.00024657,2]
[323253547,1713850244290,-900.128916,0.00024657,2]
[323253549,1713850244299,-900.128916,0.00024657,2]
[323253551,1713850244309,-900.128916,0.00024657,2]
[323253553,1713850244318,-500.0,0.00024657,2]
[323253555,1713850244328,-509.29167593,0.00024657,2]
[323253557,1713850244336,-500.0,0.00024657,2]
[323253559,1713850244345,-2207.68,0.00024657,2]
[323253560,1713850244354,-634.70723262,0.00024657,2]
[323253562,1713850244364,-500.0,0.00024657,2]
[323253564,1713850244374,-500.0,0.00024657,2]
[323253566,1713850244384,-500.0,0.00024657,2]
[323253568,1713850244393,-500.0,0.00024657,2]
[323253570,1713850244403,-500.0,0.00024657,2]
[323253572,1713850244412,-455.06703559,0.00024657,2]
[323253574,1713850244422,-500.0,0.00024657,2]
[323253576,1713850244431,-500.0,0.00024657,2]
[323253578,1713850244441,-500.0,0.00024657,2]
[323253580,1713850244450,-2860.31,0.00024657,2]
[323253582,1713850244459,-500.0,0.00024657,2]
[323253584,1713850244468,-1199.43,0.00024657,2]
[323253586,1713850244477,-573.66248374,0.00024657,2]
[323253588,1713850244486,-500.0,0.00024657,2]
[323253590,1713850244495,-500.0,0.00024657,2]
[323253592,1713850244505,-515.61208694,0.00024657,2]
[323253594,1713850244515,-500.0,0.00024657,2]
[323253596,1713850244525,-500.0,0.00024657,2]
[323253598,1713850244534,-527.15549806,0.00024657,2]
[323253600,1713850244543,-513.79451919,0.00024657,2]
[323253602,1713850244555,-707.37,0.00024657,2]
[323253604,1713850244565,-642.02,0.00024657,2]
[323253606,1713850244574,-500.0,0.00024657,2]
[323253608,1713850244584,-780.05,0.00024657,2]
[323253610,1713850244593,-500.0,0.00024657,2]
[323253612,1713850244603,-271.050045,0.00024657,2]
[323253614,1713850244612,-271.050045,0.00024657,2]
[323253616,1713850244621,-271.050045,0.00024657,2]
[323253618,1713850244632,-539.51301054,0.00024657,2]
[323253620,1713850244641,-573.61661576,0.00024657,2]
[323253622,1713850244650,-271.050045,0.00024657,2]
[323253624,1713850244660,-271.050045,0.00024657,2]
[323253626,1713850244669,-271.050045,0.00024657,2]
[323253628,1713850244679,-525.45,0.00024657,2]
[323253630,1713850244688,-544.32854534,0.00024657,2]
[323253632,1713850244697,-500.0,0.00024657,2]
[323253634,1713850244706,-632.28,0.00024657,2]
[323253636,1713850244715,-500.76189568,0.00024657,2]
[323253638,1713850244724,-500.0,0.00024657,2]
[323253640,1713850244733,-2726.42,0.00024657,2]
[323253642,1713850244742,-510.21,0.00024657,2]
[323253644,1713850244751,-500.0,0.00024657,2]
[323253646,1713850244760,-503.50474597,0.00024657,2]
[323253648,1713850244769,-500.0,0.00024657,2]
[323253650,1713850244778,-500.59999705,0.00024657,2]
[323253652,1713850244787,-400.3277968,0.00024658,2]
[323253654,1713850244795,-200.0,0.00024658,15]
[323253656,1713850244805,-4505.24661604,0.00024731,7]
[323253658,1713850244814,-153.0,0.00024764,2]
[323253660,1713850244822,-800.24278924,0.000248,7]
[323253662,1713850244831,-167.61837529,0.00024929,2]
[323253664,1713850244841,-1460.87290675,0.0002493,2]
[323253666,1713850244850,-151.0,0.00024931,2]
[323253668,1713850244859,-151.0,0.00024931,2]
[323253670,1713850244868,-500.28786778,0.00024931,2]
[323253672,1713850244877,-500.0,0.00024931,2]
[323253674,1713850244887,-500.0,0.00024931,2]
[323253676,1713850244896,-500.0,0.00024931,2]
[323253678,1713850244905,-500.0,0.00024931,2]
[323253680,1713850244914,-500.0,0.00024931,2]
[323253682,1713850244923,-500.0,0.00024931,2]
[323253684,1713850244932,-500.0,0.00024931,2]
[323253686,1713850244940,-500.0,0.00024931,2]
[323253688,1713850244949,-500.0,0.00024931,2]
[323253690,1713850244958,-500.0,0.00024931,2]
[323253691,1713850244967,-500.0,0.00024931,2]
[323253694,1713850244977,-447.62221754,0.00024931,2]
[323253695,1713850244987,-722.82,0.00024931,2]
[323253697,1713850244996,-198.15262762,0.00024931,2]
[323253699,1713850245005,-500.0,0.00024931,2]
[323253701,1713850245014,-500.0,0.00024931,2]
[323253703,1713850245022,-500.0,0.00024931,2]
[323253705,1713850245031,-500.0,0.00024931,2]
[323253707,1713850245040,-500.0,0.00024931,2]
[323253709,1713850245050,-500.0,0.00024931,2]
[323253711,1713850245059,-500.0,0.00024931,2]
[323253713,1713850245068,-500.0,0.00024931,2]
[323253715,1713850245077,-500.0,0.00024931,2]
[323253717,1713850245086,-446.44344308,0.00024931,2]
[323253719,1713850245095,-500.0,0.00024931,2]
[323253721,1713850245104,-500.0,0.00024931,2]
[323253723,1713850245113,-500.0,0.00024931,2]
[323253725,1713850245123,-500.0,0.00024931,2]
[323253727,1713850245133,-500.0,0.00024931,2]
[323253729,1713850245141,-500.0,0.00024931,2]
[323253731,1713850245151,-500.0,0.00024931,2]
[323253733,1713850245161,-500.0,0.00024931,2]
[323253735,1713850245172,-500.0,0.00024931,2]
[323253737,1713850245182,-612.32,0.00024931,2]
[323253739,1713850245191,-536.19,0.00024931,2]
[323253741,1713850245201,-742.07,0.00024931,2]
[323253743,1713850245210,-1413.18,0.00024931,2]
[323253745,1713850245220,-912.14,0.00024931,2]
[323253747,1713850245228,-500.0,0.00024931,2]
[323253748,1713850245239,-500.0,0.00024931,2]
[323253750,1713850245248,-500.0,0.00024931,2]
[323253752,1713850245257,-500.0,0.00024931,2]
[323253754,1713850245266,-500.0,0.00024931,2]
[323253756,1713850245276,-500.0,0.00024931,2]
[323253758,1713850245285,-500.0,0.00024931,2]
[323253760,1713850245294,-500.0,0.00024931,2]
[323253762,1713850245304,-500.0,0.00024931,2]
[323253764,1713850245313,-500.0,0.00024931,2]
[323253766,1713850245322,-155.40517086,0.00024931,2]
[323253768,1713850245331,-500.0,0.00024931,2]
[323253770,1713850245340,-524.69,0.00024931,2]
[323253772,1713850245349,-500.0,0.00024931,2]
[323253774,1713850245358,-500.0,0.00024931,2]
[323253776,1713850245368,-500.0,0.00024931,2]
[323253778,1713850245379,-500.0,0.00024931,2]
[323253780,1713850245388,-500.0,0.00024931,2]
[323253782,1713850245396,-500.0,0.00024931,2]
[323253784,1713850245405,-414.333361,0.00024931,2]
[323253786,1713850245414,-414.33336627,0.00024931,2]
[323253788,1713850245423,-1352.57,0.00024931,2]
[323253790,1713850245432,-500.0,0.00024931,2]
[323253792,1713850245442,-500.0,0.00024931,2]
[323253794,1713850245452,-500.0,0.00024931,2]
[323253796,1713850245461,-500.0,0.00024931,2]
[323253798,1713850245470,-1042.58,0.00024931,2]
[323253800,1713850245479,-674.5,0.00024931,2]
[323253802,1713850245488,-500.0,0.00024931,2]
[323253804,1713850245498,-500.0,0.00024931,2]
[323253806,1713850245507,-729.98,0.00024931,2]
[323253808,1713850245517,-500.0,0.00024931,2]
[323253810,1713850245526,-500.0,0.00024931,2]
[323253812,1713850245535,-500.0,0.00024931,2]
[323253814,1713850245544,-500.0,0.00024931,2]
[323253816,1713850245553,-500.0,0.00024931,2]
[323253827,1713850245649,-500.0,0.00024931,2]
[323253829,1713850245659,-594.26746955,0.00024931,2]
[323253831,1713850245668,-500.0,0.00024931,2]
[323253833,1713850245678,-700.73,0.00024931,2]
[323253835,1713850245687,-709.16,0.00024931,2]
[323253837,1713850245696,-500.0,0.00024931,2]
[323253839,1713850245705,-500.0,0.00024931,2]
[323253841,1713850245714,-500.0,0.00024931,2]
[323253843,1713850245724,-500.0,0.00024931,2]
[323253845,1713850245733,-500.0,0.00024931,2]
[323253847,1713850245742,-500.0,0.00024931,2]
[323253849,1713850245751,-500.0,0.00024931,2]
[323253851,1713850245760,-2093.01,0.00024931,2]
[323253853,1713850245770,-1923.59,0.00024931,2]
[323253856,1713850245779,-500.0,0.00024931,2]
[323253858,1713850245789,-500.0,0.00024931,2]
[323253860,1713850245799,-500.0,0.00024931,2]
[323253862,1713850245808,-500.0,0.00024931,2]
[323253864,1713850245816,-500.0,0.00024931,2]
[323253866,1713850245826,-500.0,0.00024931,2]
[323253868,1713850245835,-500.0,0.00024931,2]
[323253871,1713850245846,-503.55187489,0.00024931,2]
[323253872,1713850245855,-2149.72,0.00024931,2]
[323253874,1713850245865,-561.22,0.00024931,2]
[323253877,1713850245874,-500.0,0.00024931,2]
[323253879,1713850245885,-836.697158,0.00024931,2]
[323253881,1713850245895,-836.697158,0.00024931,2]
[323253884,1713850245905,-983.83,0.00024931,2]
[323253886,1713850245914,-500.0,0.00024931,2]
[323253887,1713850245923,-836.697158,0.00024931,2]
[323253889,1713850245933,-2167.7,0.00024931,2]
[323253891,1713850245943,-3976.81,0.00024931,2]
[323253893,1713850245952,-836.69715,0.00024931,2]
[323253895,1713850245962,-1128.92,0.00024931,2]
[323253898,1713850245971,-500.0,0.00024931,2]
[323253899,1713850245980,-934.25,0.00024931,2]
[323253901,1713850245990,-500.0,0.00024931,2]
[323253903,1713850245999,-151.0,0.00024931,2]
[323253905,1713850246009,-151.0,0.00024931,2]
[323253907,1713850246018,-500.0,0.00024931,2]
[323253909,1713850246027,-500.0,0.00024931,2]
[323253911,1713850246037,-500.0,0.00024931,2]
[323253913,1713850246047,-640.1,0.00024931,2]
[323253916,1713850246056,-500.0,0.00024931,2]
[323253918,1713850246066,-500.0,0.00024931,2]
[323253919,1713850246075,-622.99,0.00024931,2]
[323253922,1713850246085,-500.0,0.00024931,2]
[323253924,1713850246094,-500.0,0.00024931,2]
[323253926,1713850246104,-500.0,0.00024931,2]
[323253928,1713850246113,-702.82,0.00024931,2]
[323253929,1713850246123,-500.0,0.00024931,2]
[323253931,1713850246133,-553.82,0.00024931,2]
[323253933,1713850246143,-522.83,0.00024931,2]
[323253936,1713850246154,-10654.34,0.00024931,2]
[323253937,1713850246163,-500.0,0.00024931,2]
[323253939,1713850246173,-500.0,0.00024931,2]
[323253942,1713850246182,-673.76,0.00024931,2]
[323253944,1713850246192,-500.0,0.00024931,2]
[323253946,1713850246201,-1034.69298,0.00024931,2]
[323253948,1713850246210,-1034.69298,0.00024931,2]
[323253949,1713850246220,-1630.22,0.00024931,2]
[323253951,1713850246229,-1034.69298,0.00024931,2]
[323253953,1713850246239,-2468.49,0.00024931,2]
[323253955,1713850246249,-900.128916,0.00024931,2]
[323253958,1713850246258,-900.128916,0.00024931,2]
[323253959,1713850246268,-1034.69298,0.00024931,2]
[323253961,1713850246278,-1034.69298,0.00024931,2]
[323253964,1713850246287,-1034.692972,0.00024931,2]
[323253966,1713850246296,-900.128916,0.00024931,2]
[323253968,1713850246306,-900.128913,0.00024931,2]
[323253969,1713850246315,-500.0,0.00024931,2]
[323253971,1713850246324,-500.0,0.00024931,2]
[323253973,1713850246334,-2207.68,0.00024931,2]
[323253975,1713850246343,-500.0,0.00024931,2]
[323253978,1713850246353,-500.0,0.00024931,2]
[323253980,1713850246364,-500.0,0.00024931,2]
[323253982,1713850246373,-500.0,0.00024931,2]
[323253984,1713850246384,-595.40982783,0.00024931,2]
[323253985,1713850246392,-500.0,0.00024931,2]
[323253987,1713850246401,-500.0,0.00024931,2]
[323253989,1713850246410,-500.0,0.00024931,2]
[323253991,1713850246419,-2860.31,0.00024931,2]
[323253993,1713850246429,-500.0,0.00024931,2]
[323253995,1713850246438,-1199.43,0.00024931,2]
[323253997,1713850246447,-500.0,0.00024931,2]
[323253999,1713850246457,-500.0,0.00024931,2]
[323254001,1713850246466,-500.0,0.00024931,2]
[323254003,1713850246476,-500.0,0.00024931,2]
[323254005,1713850246485,-707.37,0.00024931,2]
[323254007,1713850246495,-642.02,0.00024931,2]
[323254009,1713850246504,-500.0,0.00024931,2]
[323254011,1713850246513,-780.05,0.00024931,2]
[323254013,1713850246522,-500.0,0.00024931,2]
[323254015,1713850246531,-271.050045,0.00024931,2]
[323254017,1713850246541,-271.050045,0.00024931,2]
[323254019,1713850246550,-271.050045,0.00024931,2]
[323254021,1713850246559,-525.45,0.00024931,2]
[323254023,1713850246569,-271.050041,0.00024931,2]
[323254025,1713850246578,-500.0,0.00024931,2]
[323254026,1713850246588,-632.28,0.00024931,2]
[323254027,1713850246597,-500.0,0.00024931,2]
[323254028,1713850246606,-510.21,0.00024931,2]
[323254029,1713850246616,-500.0,0.00024931,2]
[323254030,1713850246625,-500.0,0.00024931,2]
[323254031,1713850246636,-246.03936747,0.00024999,2]
[323254033,1713850246646,-157.27673588,0.00025,2]
[323254034,1713850246655,-301.36887217,0.00025,2]
[323254037,1713850246665,-40262.0,0.00025,2]
[323254039,1713850246674,-1015.30463835,0.00025,2]
[323254041,1713850246683,-515.68052767,0.00025,2]
[323254043,1713850246693,-151.0,0.00025,2]
[323254045,1713850246702,-1015.161071,0.00025,2]
[323254047,1713850246712,-151.0,0.00025205,2]
[323254049,1713850246722,-500.0,0.00025205,2]
[323254051,1713850246731,-500.0,0.00025205,2]
[323254053,1713850246741,-500.0,0.00025205,2]
[323254055,1713850246750,-500.0,0.00025205,2]
[323254056,1713850246759,-500.0,0.00025205,2]
[323254058,1713850246768,-304.83845243,0.00025205,2]
[323254060,1713850246777,-500.0,0.00025205,2]
[323254062,1713850246786,-500.0,0.00025205,2]
[323254064,1713850246795,-500.0,0.00025205,2]
[323254066,1713850246805,-500.0,0.00025205,2]
[323254068,1713850246814,-500.0,0.00025205,2]
[323254070,1713850246824,-722.82,0.00025205,2]
[323254072,1713850246833,-500.0,0.00025205,2]
[323254074,1713850246842,-500.0,0.00025205,2]
[323254076,1713850246852,-500.0,0.00025205,2]
[323254078,1713850246861,-516.65517634,0.00025205,2]
[323254080,1713850246870,-500.0,0.00025205,2]
[323254082,1713850246879,-500.0,0.00025205,2]
[323254084,1713850246889,-500.0,0.00025205,2]
[323254086,1713850246898,-500.0,0.00025205,2]
[323254088,1713850246907,-500.0,0.00025205,2]
[323254090,1713850246916,-352.22110512,0.00025205,2]
[323254092,1713850246926,-500.0,0.00025205,2]
[323254093,1713850246935,-500.0,0.00025205,2]
[323254095,1713850246944,-500.0,0.00025205,2]
[323254098,1713850246954,-500.0,0.00025205,2]
[323254099,1713850246964,-503.61212778,0.00025205,2]
[323254101,1713850246974,-505.26976822,0.00025205,2]
[323254104,1713850246984,-500.0,0.00025205,2]
[323254106,1713850246994,-500.0,0.00025205,2]
[323254108,1713850247003,-612.32,0.00025205,2]
[323254110,1713850247013,-536.19,0.00025205,2]
[323254111,1713850247023,-742.07,0.00025205,2]
[323254114,1713850247032,-1413.18,0.00025205,2]
[323254116,1713850247041,-912.14,0.00025205,2]
[323254118,1713850247051,-500.0,0.00025205,2]
[323254120,1713850247063,-500.0,0.00025205,2]
[323254121,1713850247072,-331.2550565,0.00025205,2]
[323254124,1713850247081,-500.0,0.00025205,2]
[323254126,1713850247091,-220.56944494,0.00025205,2]
[323254128,1713850247100,-500.0,0.00025205,2]
[323254129,1713850247111,-500.0,0.00025205,2]
[323254131,1713850247120,-500.0,0.00025205,2]
[323254134,1713850247130,-461.97258799,0.00025205,2]
[323254135,1713850247139,-500.0,0.00025205,2]
[323254137,1713850247151,-633.03502885,0.00025205,2]
[323254140,1713850247164,-524.69,0.00025205,2]
[323254142,1713850247174,-500.0,0.00025205,2]
[323254143,1713850247183,-502.12635121,0.00025205,2]
[323254145,1713850247193,-500.0,0.00025205,2]
[323254147,1713850247203,-500.0,0.00025205,2]
[323254149,1713850247212,-500.0,0.00025205,2]
[323254151,1713850247221,-500.0,0.00025205,2]
[323254153,1713850247232,-1352.57,0.00025205,2]
[323254155,1713850247241,-503.68586273,0.00025205,2]
[323254157,1713850247251,-500.0,0.00025205,2]
[323254159,1713850247260,-500.0,0.00025205,2]
[323254162,1713850247270,-612.68014023,0.00025205,2]
[323254164,1713850247279,-1042.58,0.00025205,2]
[323254165,1713850247288,-674.5,0.00025205,2]
[323254177,1713850247378,-500.0,0.00025205,2]
[323254179,1713850247389,-500.0,0.00025205,2]
[323254181,1713850247398,-729.98,0.00025205,2]
[323254183,1713850247408,-500.0,0.00025205,2]
[323254185,1713850247417,-503.43561982,0.00025205,2]
[323254187,1713850247426,-500.0,0.00025205,2]
[323254189,1713850247435,-500.0,0.00025205,2]
[323254191,1713850247445,-500.0,0.00025205,2]
[323254193,1713850247454,-500.0,0.00025205,2]
[323254194,1713850247463,-500.0,0.00025205,2]